[Event "Live Chess"]
[Site "Chess.com"]
[Date "2024.06.02"]
[Round "-"]
[White "nigelst"]
[Black "Duke_of_Bebington"]
[Result "1/2-1/2"]
[WhiteElo "1726"]
[BlackElo "1640"]
[TimeControl "300"]
[EndTime "18:11:07 PDT"]
[Termination "Game drawn by stalemate"]

1. e4 {[%clk 0:04:57.8]} 1... e5 {[%clk 0:04:58.7]} 2. Nf3 {[%clk 0:04:56.8]}
2... Nf6 {[%clk 0:04:57.6]} 3. Nxe5 {[%clk 0:04:55]} 3... d6 {[%clk 0:04:55.2]}
4. Nf3 {[%clk 0:04:53.1]} 4... Nxe4 {[%clk 0:04:52]} 5. Bd3 {[%clk 0:04:51.6]}
5... Nf6 {[%clk 0:04:25.6]} 6. O-O {[%clk 0:04:49.5]} 6... Be7 {[%clk
0:04:24.4]} 7. Re1 {[%clk 0:04:46.7]} 7... O-O {[%clk 0:04:23.4]} 8. c3 {[%clk
0:04:44.4]} 8... d5 {[%clk 0:04:19.6]} 9. Bc2 {[%clk 0:04:43]} 9... Bg4 {[%clk
0:04:15.4]} 10. d4 {[%clk 0:04:41.5]} 10... Nbd7 {[%clk 0:04:11.2]} 11. Qd3
{[%clk 0:04:40.3]} 11... Ne4 {[%clk 0:04:05.3]} 12. Ne5 {[%clk 0:04:35.9]} 12...
Nxe5 {[%clk 0:03:48.3]} 13. dxe5 {[%clk 0:04:34.9]} 13... Bf5 {[%clk 0:03:44.4]}
14. Qe2 {[%clk 0:04:20.5]} 14... Bc5 {[%clk 0:03:38.7]} 15. Be3 {[%clk
0:04:18.1]} 15... Qe7 {[%clk 0:03:29.6]} 16. Bb3 {[%clk 0:04:06.8]} 16... Bxe3
{[%clk 0:03:24]} 17. Qxe3 {[%clk 0:04:02.8]} 17... c6 {[%clk 0:03:14]} 18. f4
{[%clk 0:03:50.3]} 18... g5 {[%clk 0:02:40.7]} 19. g3 {[%clk 0:03:43.7]} 19...
Kh8 {[%clk 0:02:33]} 20. Nd2 {[%clk 0:03:39]} 20... gxf4 {[%clk 0:02:29.3]} 21.
gxf4 {[%clk 0:03:32]} 21... Rg8+ {[%clk 0:02:27]} 22. Kh1 {[%clk 0:03:29.8]}
22... Nxd2 {[%clk 0:02:20.2]} 23. Qxd2 {[%clk 0:03:27.9]} 23... Be4+ {[%clk
0:02:18.5]} 24. Rxe4 {[%clk 0:03:17.8]} 24... dxe4 {[%clk 0:02:18.4]} 25. Qe3
{[%clk 0:03:12.7]} 25... Rg7 {[%clk 0:01:50.2]} 26. Qxe4 {[%clk 0:03:10.7]}
26... Rag8 {[%clk 0:01:49.3]} 27. Bc2 {[%clk 0:03:04.8]} 27... Qc5 {[%clk
0:01:45.3]} 28. Qd4 {[%clk 0:02:49.6]} 28... Qxd4 {[%clk 0:01:42.8]} 29. cxd4
{[%clk 0:02:48.5]} 29... Rd8 {[%clk 0:01:39.3]} 30. Rd1 {[%clk 0:02:45.2]} 30...
Rg4 {[%clk 0:01:37.5]} 31. Bb3 {[%clk 0:02:23.3]} 31... Kg7 {[%clk 0:01:19.7]}
32. d5 {[%clk 0:02:08.6]} 32... cxd5 {[%clk 0:01:14.2]} 33. Rxd5 {[%clk
0:02:04.1]} 33... Rxd5 {[%clk 0:01:10.9]} 34. Bxd5 {[%clk 0:02:02.5]} 34... b6
{[%clk 0:01:09.6]} 35. f5 {[%clk 0:01:56.6]} 35... Rg5 {[%clk 0:01:07.3]} 36.
Be4 {[%clk 0:01:53.4]} 36... Rg4 {[%clk 0:01:02.4]} 37. Bd5 {[%clk 0:01:51.6]}
37... Rf4 {[%clk 0:00:57.6]} 38. f6+ {[%clk 0:01:49.8]} 38... Kf8 {[%clk
0:00:56.7]} 39. Kg2 {[%clk 0:01:35.4]} 39... h6 {[%clk 0:00:52]} 40. b4 {[%clk
0:01:11.4]} 40... Rxb4 {[%clk 0:00:46.7]} 41. e6 {[%clk 0:01:08.9]} 41... fxe6
{[%clk 0:00:44.9]} 42. Bxe6 {[%clk 0:01:06.2]} 42... Rf4 {[%clk 0:00:41.7]} 43.
f7 {[%clk 0:01:03.9]} 43... Ke7 {[%clk 0:00:40.7]} 44. Bb3 {[%clk 0:01:02.4]}
44... a5 {[%clk 0:00:34.3]} 45. Kg3 {[%clk 0:00:57.7]} 45... Rf6 {[%clk
0:00:33.3]} 46. Kg4 {[%clk 0:00:53.1]} 46... b5 {[%clk 0:00:32.7]} 47. Bd5
{[%clk 0:00:51.3]} 47... b4 {[%clk 0:00:22.1]} 48. h4 {[%clk 0:00:46.6]} 48...
Rxf7 {[%clk 0:00:20.9]} 49. Bb3 {[%clk 0:00:38.8]} 49... Rf2 {[%clk 0:00:16.8]}
50. Kh5 {[%clk 0:00:35.3]} 50... Rh2 {[%clk 0:00:15.8]} 51. Kxh6 {[%clk
0:00:30.7]} 51... Rxh4+ {[%clk 0:00:14.3]} 52. Kg5 {[%clk 0:00:29.6]} 52... Rh2
{[%clk 0:00:12.9]} 53. Kf4 {[%clk 0:00:28.2]} 53... Kd6 {[%clk 0:00:12.8]} 54.
Ke4 {[%clk 0:00:26.9]} 54... Kc5 {[%clk 0:00:12.7]} 55. Kd3 {[%clk 0:00:24.8]}
55... Kb5 {[%clk 0:00:12.6]} 56. Kd4 {[%clk 0:00:23.6]} 56... a4 {[%clk
0:00:11.9]} 57. Bc4+ {[%clk 0:00:22.6]} 57... Ka5 {[%clk 0:00:10.6]} 58. Kc5
{[%clk 0:00:17.6]} 58... Rh5+ {[%clk 0:00:08.7]} 59. Kd4 {[%clk 0:00:16.2]}
59... Rh4+ {[%clk 0:00:07]} 60. Kc5 {[%clk 0:00:15.1]} 60... Rxc4+ {[%clk
0:00:06]} 61. Kxc4 {[%clk 0:00:14]} 61... a3 {[%clk 0:00:05.2]} 62. Kb3 {[%clk
0:00:12.6]} 62... Kb5 {[%clk 0:00:04.5]} 63. Kc2 {[%clk 0:00:08.8]} 63... Kc4
{[%clk 0:00:04.1]} 64. Kb1 {[%clk 0:00:07.2]} 64... Kc3 {[%clk 0:00:03]} 65. Kc1
{[%clk 0:00:06.1]} 65... b3 {[%clk 0:00:02.1]} 66. axb3 {[%clk 0:00:04.4]} 66...
Kxb3 {[%clk 0:00:02]} 67. Kb1 {[%clk 0:00:03.6]} 67... a2+ {[%clk 0:00:01.3]}
68. Ka1 {[%clk 0:00:02.9]} 68... Ka3 {[%clk 0:00:00.9]} 1/2-1/2

[Event "Live Chess"]
[Site "Chess.com"]
[Date "2024.06.02"]
[Round "-"]
[White "oscalik"]
[Black "gobbles19"]
[Result "0-1"]
[WhiteElo "2277"]
[BlackElo "2277"]
[TimeControl "300"]
[EndTime "18:12:33 PDT"]
[Termination "gobbles19 won by resignation"]

1. e4 {[%clk 0:04:56]} 1... d6 {[%clk 0:04:59.4]} 2. d4 {[%clk 0:04:53.8]} 2...
Nf6 {[%clk 0:04:59]} 3. Nc3 {[%clk 0:04:52.7]} 3... g6 {[%clk 0:04:58.6]} 4. f4
{[%clk 0:04:51.5]} 4... Bg7 {[%clk 0:04:58.2]} 5. Nf3 {[%clk 0:04:50.9]} 5...
O-O {[%clk 0:04:57.8]} 6. Bd3 {[%clk 0:04:47.9]} 6... Na6 {[%clk 0:04:57]} 7. a3
{[%clk 0:04:46.3]} 7... c5 {[%clk 0:04:56.3]} 8. e5 {[%clk 0:04:44.9]} 8... Nd7
{[%clk 0:04:53.8]} 9. Be3 {[%clk 0:04:20.7]} 9... cxd4 {[%clk 0:04:51.2]} 10.
Bxd4 {[%clk 0:04:19.9]} 10... dxe5 {[%clk 0:04:48.2]} 11. fxe5 {[%clk
0:04:13.2]} 11... Nac5 {[%clk 0:04:42.2]} 12. Bc4 {[%clk 0:04:07.3]} 12... Nb6
{[%clk 0:04:26.9]} 13. Ba2 {[%clk 0:04:01.8]} 13... Ne6 {[%clk 0:04:24]} 14. Be3
{[%clk 0:03:53.9]} 14... Qc7 {[%clk 0:04:17.9]} 15. O-O {[%clk 0:03:40.2]} 15...
a6 {[%clk 0:04:15.7]} 16. Qe1 {[%clk 0:03:16.4]} 16... Nc4 {[%clk 0:04:12.7]}
17. Bxc4 {[%clk 0:03:08]} 17... Qxc4 {[%clk 0:04:12.6]} 18. Qg3 {[%clk
0:03:07.1]} 18... b5 {[%clk 0:04:04.7]} 19. Rad1 {[%clk 0:02:55.5]} 19... Bb7
{[%clk 0:04:02.3]} 20. Rd7 {[%clk 0:02:54.5]} 20... Bxf3 {[%clk 0:03:53.5]} 21.
Rxf3 {[%clk 0:02:54.4]} 21... Rad8 {[%clk 0:03:39.3]} 22. Rxe7 {[%clk
0:02:37.5]} 22... Nd4 {[%clk 0:03:38]} 23. Rf4 {[%clk 0:02:27]} 23... Ne2+
{[%clk 0:03:31.7]} 24. Nxe2 {[%clk 0:02:21.9]} 24... Qxe2 {[%clk 0:03:31.6]} 25.
h4 {[%clk 0:01:49.6]} 25... Rd1+ {[%clk 0:03:26.1]} 26. Kh2 {[%clk 0:01:48.5]}
26... Rb1 {[%clk 0:02:59.5]} 27. Rd7 {[%clk 0:01:25.3]} 27... Bxe5 {[%clk
0:02:52.8]} 28. Rd2 {[%clk 0:01:18.1]} 28... Qh5 {[%clk 0:02:48.2]} 29. Rd5
{[%clk 0:01:12.6]} 29... Bxf4 {[%clk 0:02:45.2]} 0-1

[Event "Live Chess"]
[Site "Chess.com"]
[Date "2024.06.02"]
[Round "-"]
[White "ACM42"]
[Black "MagnersCarlsberg2870"]
[Result "1-0"]
[WhiteElo "2163"]
[BlackElo "1773"]
[TimeControl "300"]
[EndTime "18:12:56 PDT"]
[Termination "ACM42 won by resignation"]

1. e4 {[%clk 0:04:58.9]} 1... c5 {[%clk 0:04:57.3]} 2. Nf3 {[%clk 0:04:58.1]}
2... a6 {[%clk 0:04:56]} 3. d4 {[%clk 0:04:57.4]} 3... cxd4 {[%clk 0:04:54.4]}
4. Nxd4 {[%clk 0:04:57.3]} 4... e5 {[%clk 0:04:52.7]} 5. Nf3 {[%clk 0:04:55]}
5... Nf6 {[%clk 0:04:47.7]} 6. Bd3 {[%clk 0:04:47.6]} 6... Bc5 {[%clk
0:04:43.8]} 7. O-O {[%clk 0:04:45.4]} 7... Ng4 {[%clk 0:04:42.7]} 8. h3 {[%clk
0:04:42.8]} 8... h5 {[%clk 0:04:41.7]} 9. a3 {[%clk 0:04:30.3]} 9... Qb6 {[%clk
0:04:39.9]} 10. Qe2 {[%clk 0:04:23.8]} 10... Nc6 {[%clk 0:04:36.3]} 11. b4
{[%clk 0:04:14.8]} 11... Nd4 {[%clk 0:04:30.3]} 12. Nxd4 {[%clk 0:04:11.5]}
12... Bxd4 {[%clk 0:04:29.2]} 13. c3 {[%clk 0:04:08.3]} 13... Bxf2+ {[%clk
0:04:26.1]} 14. Rxf2 {[%clk 0:04:07.5]} 14... Nxf2 {[%clk 0:04:25.2]} 15. Qxf2
{[%clk 0:04:07.4]} 15... Qxf2+ {[%clk 0:04:23.2]} 16. Kxf2 {[%clk 0:04:06.8]}
16... d6 {[%clk 0:04:20.9]} 17. Nd2 {[%clk 0:04:03.5]} 17... Be6 {[%clk
0:04:19.9]} 18. Bc4 {[%clk 0:04:00.1]} 18... Rc8 {[%clk 0:04:17.3]} 19. Bxe6
{[%clk 0:03:57.7]} 19... fxe6 {[%clk 0:04:16]} 20. c4 {[%clk 0:03:57]} 20...
Rf8+ {[%clk 0:04:12]} 21. Ke2 {[%clk 0:03:53.9]} 21... Ke7 {[%clk 0:04:08.3]}
22. Bb2 {[%clk 0:03:52.6]} 22... Rf4 {[%clk 0:04:02.4]} 23. g3 {[%clk
0:03:48.8]} 23... Rf6 {[%clk 0:03:58.6]} 24. Rf1 {[%clk 0:03:47.9]} 24... Rcf8
{[%clk 0:03:57.4]} 25. Rf3 {[%clk 0:03:42.8]} 25... Rxf3 {[%clk 0:03:45.1]} 26.
Nxf3 {[%clk 0:03:41.3]} 26... b6 {[%clk 0:03:40.8]} 27. Nh4 {[%clk 0:03:23.2]}
27... Rc8 {[%clk 0:03:38.6]} 28. Kd3 {[%clk 0:03:22.1]} 28... Kf6 {[%clk
0:03:35.8]} 29. Bc1 {[%clk 0:03:20.4]} 29... g5 {[%clk 0:03:31]} 30. Ng2 {[%clk
0:03:14.8]} 30... Rd8 {[%clk 0:03:28.3]} 31. Be3 {[%clk 0:03:12]} 31... d5
{[%clk 0:03:26.9]} 32. Bxb6 {[%clk 0:03:00.6]} 32... dxe4+ {[%clk 0:03:24.1]}
33. Kxe4 {[%clk 0:02:59.5]} 33... Rd2 {[%clk 0:03:22]} 34. Ne3 {[%clk
0:02:55.6]} 34... Ra2 {[%clk 0:03:17.4]} 35. c5 {[%clk 0:02:51.6]} 35... Rxa3
{[%clk 0:03:15.1]} 36. Bd8+ {[%clk 0:02:39.5]} 36... Kf7 {[%clk 0:03:11.5]} 37.
c6 {[%clk 0:02:38.3]} 37... Rc3 {[%clk 0:03:03.4]} 38. c7 {[%clk 0:02:35.3]}
38... h4 {[%clk 0:02:45.7]} 39. gxh4 {[%clk 0:02:32.1]} 39... gxh4 {[%clk
0:02:44.7]} 40. Ng4 {[%clk 0:02:27.5]} 40... Ke8 {[%clk 0:02:36.6]} 41. Nxe5
{[%clk 0:02:26.5]} 1-0

[Event "Live Chess"]
[Site "Chess.com"]
[Date "2024.06.02"]
[Round "-"]
[White "WelshTiger"]
[Black "e4evr"]
[Result "1-0"]
[WhiteElo "2443"]
[BlackElo "2257"]
[TimeControl "300"]
[EndTime "18:13:34 PDT"]
[Termination "WelshTiger won by resignation"]

1. e4 {[%clk 0:04:57.8]} 1... a6 {[%clk 0:04:59.9]} 2. a4 {[%clk 0:04:54.7]}
2... b6 {[%clk 0:04:58.7]} 3. d4 {[%clk 0:04:52.5]} 3... Bb7 {[%clk 0:04:58.1]}
4. Nc3 {[%clk 0:04:51]} 4... e6 {[%clk 0:04:56.4]} 5. Nf3 {[%clk 0:04:40.7]}
5... Bb4 {[%clk 0:04:55.8]} 6. Bd3 {[%clk 0:04:39.8]} 6... h6 {[%clk 0:04:53.6]}
7. Qe2 {[%clk 0:04:37.3]} 7... Nc6 {[%clk 0:04:51.1]} 8. Bd2 {[%clk 0:04:34.4]}
8... Nce7 {[%clk 0:04:48.4]} 9. O-O {[%clk 0:04:24.1]} 9... Nf6 {[%clk
0:04:46.9]} 10. e5 {[%clk 0:04:18.7]} 10... Nh7 {[%clk 0:04:27.5]} 11. Ne4
{[%clk 0:04:12.8]} 11... Bxd2 {[%clk 0:04:25.9]} 12. Nfxd2 {[%clk 0:04:06.9]}
12... Ng5 {[%clk 0:04:24.2]} 13. f4 {[%clk 0:04:02.4]} 13... Nxe4 {[%clk
0:04:22.5]} 14. Nxe4 {[%clk 0:04:02.3]} 14... Nf5 {[%clk 0:04:20.8]} 15. c3
{[%clk 0:04:00.9]} 15... d5 {[%clk 0:04:19.7]} 16. exd6 {[%clk 0:03:58.7]} 16...
Nxd6 {[%clk 0:04:15.8]} 17. Nxd6+ {[%clk 0:03:57.1]} 17... Qxd6 {[%clk 0:04:15]}
18. f5 {[%clk 0:03:56.6]} 18... O-O-O {[%clk 0:04:03.7]} 19. fxe6 {[%clk
0:03:53.4]} 19... Rhe8 {[%clk 0:04:02.3]} 20. Rxf7 {[%clk 0:03:43.1]} 20... Rxe6
{[%clk 0:04:00.3]} 21. Bf5 {[%clk 0:03:41.7]} 21... Re8 {[%clk 0:03:59.1]} 22.
Re1 {[%clk 0:03:38]} 22... Qd5 {[%clk 0:03:52]} 23. Qf3 {[%clk 0:03:14.8]} 23...
Qd7 {[%clk 0:03:36.9]} 24. Bxe6 {[%clk 0:03:07.6]} 24... Rxe6 {[%clk 0:03:29.8]}
25. Rf8+ {[%clk 0:03:02.3]} 1-0

[Event "Live Chess"]
[Site "Chess.com"]
[Date "2024.06.02"]
[Round "-"]
[White "StoreySniper"]
[Black "Harry_Li"]
[Result "1-0"]
[WhiteElo "2511"]
[BlackElo "2114"]
[TimeControl "300"]
[EndTime "18:13:54 PDT"]
[Termination "StoreySniper won by resignation"]

1. e4 {[%clk 0:04:56.9]} 1... c5 {[%clk 0:04:57.5]} 2. Nf3 {[%clk 0:04:55.7]}
2... d6 {[%clk 0:04:56.8]} 3. d4 {[%clk 0:04:55.2]} 3... cxd4 {[%clk 0:04:56.3]}
4. Nxd4 {[%clk 0:04:55]} 4... Nf6 {[%clk 0:04:55.9]} 5. f3 {[%clk 0:04:54.4]}
5... a6 {[%clk 0:04:52.9]} 6. c4 {[%clk 0:04:53.5]} 6... e5 {[%clk 0:04:50.2]}
7. Nc2 {[%clk 0:04:49]} 7... Be7 {[%clk 0:04:44.8]} 8. Nc3 {[%clk 0:04:47.7]}
8... O-O {[%clk 0:04:43.8]} 9. Be3 {[%clk 0:04:44.7]} 9... Be6 {[%clk
0:04:40.4]} 10. Qd2 {[%clk 0:04:43]} 10... Nbd7 {[%clk 0:04:38.9]} 11. Nd5
{[%clk 0:04:39.9]} 11... Bxd5 {[%clk 0:04:36.2]} 12. cxd5 {[%clk 0:04:39]} 12...
b5 {[%clk 0:04:34.7]} 13. Nb4 {[%clk 0:04:34.8]} 13... Nb8 {[%clk 0:04:22.2]}
14. a4 {[%clk 0:04:32.4]} 14... Qa5 {[%clk 0:04:08]} 15. b3 {[%clk 0:04:14.2]}
15... Bd8 {[%clk 0:04:03.9]} 16. Bd3 {[%clk 0:04:05.6]} 16... Bb6 {[%clk
0:04:00.8]} 17. Bxb6 {[%clk 0:04:01.3]} 17... Qxb6 {[%clk 0:04:00.7]} 18. axb5
{[%clk 0:03:59.4]} 18... a5 {[%clk 0:03:59.9]} 19. Nc6 {[%clk 0:03:54.5]} 19...
Nxc6 {[%clk 0:03:50.4]} 20. dxc6 {[%clk 0:03:53.1]} 20... d5 {[%clk 0:03:34.8]}
21. Qf2 {[%clk 0:03:48.1]} 21... d4 {[%clk 0:03:32.3]} 22. O-O {[%clk
0:03:42.6]} 22... Ne8 {[%clk 0:03:29.3]} 23. f4 {[%clk 0:03:34]} 23... Nd6
{[%clk 0:03:21.4]} 24. Qe2 {[%clk 0:03:26.1]} 24... exf4 {[%clk 0:03:02.4]} 25.
e5 {[%clk 0:03:20.2]} 25... Rae8 {[%clk 0:02:56.3]} 26. Bxh7+ {[%clk 0:03:10.7]}
26... Kxh7 {[%clk 0:02:44.2]} 27. Qd3+ {[%clk 0:03:08.7]} 27... Kg8 {[%clk
0:02:40.1]} 28. exd6 {[%clk 0:03:06.1]} 28... Re3 {[%clk 0:02:39.2]} 29. Qc4
{[%clk 0:02:56.8]} 29... d3 {[%clk 0:02:35.1]} 30. b4 {[%clk 0:02:43.1]} 30...
axb4 {[%clk 0:02:24.2]} 31. Ra6 {[%clk 0:02:39.4]} 31... Re4+ {[%clk 0:01:42.8]}
32. Rxb6 {[%clk 0:02:36.6]} 32... Rxc4 {[%clk 0:01:42.5]} 33. c7 {[%clk
0:02:27.5]} 33... d2 {[%clk 0:01:39]} 34. Rc6 {[%clk 0:02:25.5]} 34... Rxc6
{[%clk 0:01:36.5]} 35. bxc6 {[%clk 0:02:24.3]} 1-0

[Event "Live Chess"]
[Site "Chess.com"]
[Date "2024.06.02"]
[Round "-"]
[White "NAZRIZ1977"]
[Black "NeilDruggan73"]
[Result "1-0"]
[WhiteElo "2130"]
[BlackElo "1774"]
[TimeControl "300"]
[EndTime "18:14:10 PDT"]
[Termination "NAZRIZ1977 won by checkmate"]

1. e4 {[%clk 0:04:53.6]} 1... d6 {[%clk 0:04:57.7]} 2. d4 {[%clk 0:04:52.3]}
2... Nf6 {[%clk 0:04:54.1]} 3. Nc3 {[%clk 0:04:51.8]} 3... g6 {[%clk 0:04:52.9]}
4. f3 {[%clk 0:04:51]} 4... Bg7 {[%clk 0:04:51.8]} 5. Be3 {[%clk 0:04:50.6]}
5... O-O {[%clk 0:04:49.1]} 6. Qd2 {[%clk 0:04:49.4]} 6... b6 {[%clk 0:04:46]}
7. O-O-O {[%clk 0:04:45.9]} 7... c5 {[%clk 0:04:44.5]} 8. Nge2 {[%clk
0:04:44.6]} 8... Nbd7 {[%clk 0:04:42.1]} 9. Bh6 {[%clk 0:04:43.5]} 9... Bb7
{[%clk 0:04:40.6]} 10. h4 {[%clk 0:04:42.4]} 10... e5 {[%clk 0:04:32.8]} 11.
dxc5 {[%clk 0:04:32.9]} 11... dxc5 {[%clk 0:04:25.6]} 12. h5 {[%clk 0:04:30.1]}
12... Qe7 {[%clk 0:04:19.4]} 13. Bxg7 {[%clk 0:04:26.1]} 13... Kxg7 {[%clk
0:04:16.1]} 14. hxg6 {[%clk 0:04:26]} 14... fxg6 {[%clk 0:04:13.6]} 15. Qh6+
{[%clk 0:04:18.1]} 15... Kg8 {[%clk 0:04:13.1]} 16. Ng3 {[%clk 0:04:13.4]} 16...
Qg7 {[%clk 0:04:11.6]} 17. Bc4+ {[%clk 0:04:12]} 17... Kh8 {[%clk 0:04:06.5]}
18. Qh4 {[%clk 0:04:09.3]} 18... a6 {[%clk 0:03:56.9]} 19. Bd5 {[%clk
0:03:52.6]} 19... Bxd5 {[%clk 0:03:47.7]} 20. Nxd5 {[%clk 0:03:51.3]} 20... Nxd5
{[%clk 0:03:43.4]} 21. Rxd5 {[%clk 0:03:49.6]} 21... Nb8 {[%clk 0:03:12.5]} 22.
Rxe5 {[%clk 0:03:40]} 22... Nc6 {[%clk 0:03:06.5]} 23. Re6 {[%clk 0:03:33.6]}
23... Nd4 {[%clk 0:02:57.5]} 24. Re7 {[%clk 0:03:28.7]} 24... Rf7 {[%clk
0:02:54.5]} 25. Rxf7 {[%clk 0:03:25]} 25... Qxf7 {[%clk 0:02:53.1]} 26. c3
{[%clk 0:03:19.3]} 26... Rc8 {[%clk 0:02:40.2]} 27. cxd4 {[%clk 0:03:10]} 27...
cxd4+ {[%clk 0:02:34.6]} 28. Kb1 {[%clk 0:03:08.9]} 28... Rc7 {[%clk 0:02:26.8]}
29. Qd8+ {[%clk 0:03:04.9]} 29... Kg7 {[%clk 0:02:25.2]} 30. Qxd4+ {[%clk
0:03:03.5]} 30... Kg8 {[%clk 0:02:22.8]} 31. Rd1 {[%clk 0:02:58.1]} 31... h6
{[%clk 0:02:12]} 32. Nf1 {[%clk 0:02:54.1]} 32... b5 {[%clk 0:01:57.7]} 33. Ne3
{[%clk 0:02:52.4]} 33... h5 {[%clk 0:01:52]} 34. Nd5 {[%clk 0:02:49.9]} 34...
Rc4 {[%clk 0:01:44.2]} 35. Nf6+ {[%clk 0:02:44.5]} 35... Kh8 {[%clk 0:01:37.7]}
36. Qe5 {[%clk 0:02:39.5]} 36... Qc7 {[%clk 0:01:03.5]} 37. Rd8+ {[%clk
0:02:06]} 37... Qxd8 {[%clk 0:00:41.3]} 38. Nxh5+ {[%clk 0:02:03.8]} 38... Kh7
{[%clk 0:00:27.6]} 39. Qg7# {[%clk 0:02:00.9]} 1-0

[Event "Live Chess"]
[Site "Chess.com"]
[Date "2024.06.02"]
[Round "-"]
[White "Crowded_House"]
[Black "Frankie_Badacsonyi"]
[Result "0-1"]
[WhiteElo "1707"]
[BlackElo "2409"]
[TimeControl "300"]
[EndTime "18:14:24 PDT"]
[Termination "Frankie_Badacsonyi won by resignation"]

1. d4 {[%clk 0:04:57.3]} 1... Nf6 {[%clk 0:04:59]} 2. Bf4 {[%clk 0:04:55.2]}
2... b6 {[%clk 0:04:57.1]} 3. e3 {[%clk 0:04:52.2]} 3... Bb7 {[%clk 0:04:56.5]}
4. Nf3 {[%clk 0:04:51.1]} 4... e6 {[%clk 0:04:55.8]} 5. Bd3 {[%clk 0:04:49.5]}
5... Be7 {[%clk 0:04:55.3]} 6. Nbd2 {[%clk 0:04:47.6]} 6... O-O {[%clk
0:04:54.5]} 7. O-O {[%clk 0:04:46.2]} 7... c5 {[%clk 0:04:54]} 8. c3 {[%clk
0:04:44.6]} 8... cxd4 {[%clk 0:04:52.6]} 9. exd4 {[%clk 0:04:43.3]} 9... d6
{[%clk 0:04:52.1]} 10. Re1 {[%clk 0:04:41.4]} 10... Nbd7 {[%clk 0:04:51.5]} 11.
Qc2 {[%clk 0:04:40.1]} 11... Re8 {[%clk 0:04:50.1]} 12. Bg5 {[%clk 0:04:34.9]}
12... Nf8 {[%clk 0:04:47.7]} 13. Bb5 {[%clk 0:04:28.3]} 13... N6d7 {[%clk
0:04:42.6]} 14. Bxe7 {[%clk 0:04:25.8]} 14... Qxe7 {[%clk 0:04:42.5]} 15. Re2
{[%clk 0:04:07]} 15... a6 {[%clk 0:04:37.4]} 16. Bc4 {[%clk 0:04:02.9]} 16... b5
{[%clk 0:04:35.8]} 17. Bb3 {[%clk 0:04:01.6]} 17... Rac8 {[%clk 0:04:32.7]} 18.
a3 {[%clk 0:03:56.3]} 18... Nf6 {[%clk 0:04:29.1]} 19. Qd1 {[%clk 0:03:50.4]}
19... Qc7 {[%clk 0:04:23.9]} 20. Bc2 {[%clk 0:03:46.4]} 20... g6 {[%clk
0:04:19.5]} 21. h3 {[%clk 0:03:45.2]} 21... a5 {[%clk 0:04:14.8]} 22. Qb1 {[%clk
0:03:39.9]} 22... b4 {[%clk 0:04:13]} 23. axb4 {[%clk 0:03:38.3]} 23... axb4
{[%clk 0:04:12.9]} 24. c4 {[%clk 0:03:28.9]} 24... Bxf3 {[%clk 0:04:11.3]} 25.
Nxf3 {[%clk 0:03:27.1]} 25... Qxc4 {[%clk 0:04:06.1]} 26. Bd1 {[%clk 0:03:12.9]}
26... Ra8 {[%clk 0:03:53.8]} 27. Rxa8 {[%clk 0:03:09]} 27... Rxa8 {[%clk
0:03:53.7]} 28. Rc2 {[%clk 0:03:08]} 28... Qa2 {[%clk 0:03:48]} 29. Qxa2 {[%clk
0:03:04.6]} 29... Rxa2 {[%clk 0:03:47.9]} 30. b3 {[%clk 0:02:54.5]} 30... Ra1
{[%clk 0:03:40.1]} 31. Rd2 {[%clk 0:02:51.9]} 31... Ne4 {[%clk 0:03:38.1]} 32.
Re2 {[%clk 0:02:41.1]} 32... Nc3 {[%clk 0:03:36.7]} 33. Re1 {[%clk 0:02:34.1]}
33... Rxd1 {[%clk 0:03:35.2]} 34. Rxd1 {[%clk 0:02:32.9]} 34... Nxd1 {[%clk
0:03:35.1]} 35. Ne1 {[%clk 0:02:28.2]} 35... Nc3 {[%clk 0:03:33.8]} 36. Nc2
{[%clk 0:02:26.2]} 36... Nd5 {[%clk 0:03:26.4]} 37. Kf1 {[%clk 0:02:25]} 37...
Nd7 {[%clk 0:03:23.5]} 38. Ke2 {[%clk 0:02:24.3]} 38... Kf8 {[%clk 0:03:22.7]}
39. Kd3 {[%clk 0:02:23.4]} 39... N7b6 {[%clk 0:03:22.1]} 40. g3 {[%clk
0:02:18.5]} 40... Ke7 {[%clk 0:03:20.2]} 41. f4 {[%clk 0:02:17.5]} 41... Kd7
{[%clk 0:03:18]} 42. Ke4 {[%clk 0:02:13.8]} 42... f5+ {[%clk 0:03:16.2]} 43. Kd3
{[%clk 0:02:10.8]} 43... Kc6 {[%clk 0:03:16.1]} 44. Ke2 {[%clk 0:02:02.4]} 44...
Nc3+ {[%clk 0:03:05.1]} 45. Kd3 {[%clk 0:01:59.8]} 45... Kb5 {[%clk 0:03:03.5]}
46. g4 {[%clk 0:01:55.6]} 46... Nbd5 {[%clk 0:03:01.5]} 47. gxf5 {[%clk
0:01:53]} 47... gxf5 {[%clk 0:03:00.1]} 0-1

[Event "Live Chess"]
[Site "Chess.com"]
[Date "2024.06.02"]
[Round "-"]
[White "Silverback7829"]
[Black "asingardenof"]
[Result "1-0"]
[WhiteElo "918"]
[BlackElo "626"]
[TimeControl "300"]
[EndTime "18:14:54 PDT"]
[Termination "Silverback7829 won on time"]

1. d4 {[%clk 0:04:56.5]} 1... Nf6 {[%clk 0:04:58]} 2. Nf3 {[%clk 0:04:54.7]}
2... Nc6 {[%clk 0:04:54.9]} 3. Nc3 {[%clk 0:04:52.5]} 3... g6 {[%clk 0:04:52]}
4. e3 {[%clk 0:04:51.1]} 4... Bg7 {[%clk 0:04:50.2]} 5. Bc4 {[%clk 0:04:47.8]}
5... Na5 {[%clk 0:04:39.6]} 6. Ne5 {[%clk 0:04:37.9]} 6... O-O {[%clk
0:04:35.3]} 7. Nxf7 {[%clk 0:04:30.8]} 7... Rxf7 {[%clk 0:04:32.8]} 8. Bxf7+
{[%clk 0:04:28.4]} 8... Kxf7 {[%clk 0:04:32.7]} 9. O-O {[%clk 0:04:19.3]} 9...
b6 {[%clk 0:04:23.5]} 10. b4 {[%clk 0:04:12.5]} 10... Nc4 {[%clk 0:04:20.1]} 11.
Qf3 {[%clk 0:04:03.8]} 11... c6 {[%clk 0:04:06.2]} 12. Ne4 {[%clk 0:03:50.4]}
12... d5 {[%clk 0:03:45.7]} 13. Ng3 {[%clk 0:03:45.3]} 13... Kg8 {[%clk
0:03:16.3]} 14. Re1 {[%clk 0:03:33.6]} 14... Be6 {[%clk 0:03:04.8]} 15. c3
{[%clk 0:03:22.6]} 15... b5 {[%clk 0:02:44.1]} 16. Rd1 {[%clk 0:03:12.7]} 16...
Qc7 {[%clk 0:02:14.6]} 17. a4 {[%clk 0:03:08.8]} 17... a5 {[%clk 0:02:00.5]} 18.
axb5 {[%clk 0:03:04.2]} 18... cxb5 {[%clk 0:02:00.4]} 19. bxa5 {[%clk
0:02:58.8]} 19... Rxa5 {[%clk 0:01:48.4]} 20. Rxa5 {[%clk 0:02:53.9]} 20... Nxa5
{[%clk 0:01:48.3]} 21. Bd2 {[%clk 0:02:44.1]} 21... Nb3 {[%clk 0:01:45]} 22. h3
{[%clk 0:02:26.4]} 22... h5 {[%clk 0:01:35.3]} 23. Qe2 {[%clk 0:02:15.9]} 23...
Qd7 {[%clk 0:01:19.5]} 24. Rb1 {[%clk 0:02:10.7]} 24... Nxd2 {[%clk 0:01:00.5]}
25. Qxd2 {[%clk 0:02:08.4]} 25... Bf5 {[%clk 0:00:49.9]} 26. Ra1 {[%clk
0:02:03]} 26... Kh7 {[%clk 0:00:45]} 27. Nxf5 {[%clk 0:01:51.2]} 27... gxf5
{[%clk 0:00:42.3]} 28. Ra6 {[%clk 0:01:38]} 28... Ne4 {[%clk 0:00:36.7]} 29. Qe1
{[%clk 0:01:24.3]} 29... e6 {[%clk 0:00:26.9]} 30. f3 {[%clk 0:01:18.3]} 30...
Ng5 {[%clk 0:00:19]} 31. e4 {[%clk 0:01:13.2]} 31... Qf7 {[%clk 0:00:18.9]} 32.
exf5 {[%clk 0:01:07]} 32... Qxf5 {[%clk 0:00:16.2]} 33. Ra7 {[%clk 0:01:02.9]}
33... Qd3 {[%clk 0:00:13.7]} 34. Qf1 {[%clk 0:00:49.8]} 34... Nxf3+ {[%clk
0:00:11.2]} 35. Qxf3 {[%clk 0:00:45.6]} 35... Qd1+ {[%clk 0:00:09.3]} 36. Qf1
{[%clk 0:00:36.9]} 36... Kg6 {[%clk 0:00:08.4]} 37. Qxd1 {[%clk 0:00:34.4]}
37... Kf5 {[%clk 0:00:06.6]} 38. Qf1+ {[%clk 0:00:32.5]} 38... Ke4 {[%clk
0:00:04.5]} 39. Rxg7 {[%clk 0:00:30.4]} 1-0